bitfinex/quotes_BTCUSD_20250726
["timestamp","ask_amount","ask_price","bid_price","bid_amount"]
[1753539571353,5.70386984,118320.0,118310.0,0.32284429]
[1753539571805,4.94152823,118320.0,118310.0,0.33129601]
[1753539572033,5.31847288,118320.0,118310.0,0.322844]
[1753539572243,5.32692432,118320.0,118310.0,0.32284407]
[1753539574087,5.32692432,118320.0,118310.0,0.33129615]
[1753539574726,5.32692432,118320.0,118310.0,0.32284407]
[1753539575180,5.32692432,118320.0,118310.0,0.3059397]
[1753539575427,5.7038699,118320.0,118310.0,0.30593978]
[1753539575844,5.69541825,118320.0,118310.0,0.31439207]
[1753539575991,5.69541825,118320.0,118310.0,0.32284429]
[1753539576426,5.68696667,118320.0,118310.0,0.32284429]
[1753539576671,5.69541825,118320.0,118310.0,0.31439207]
[1753539577287,5.69541825,118320.0,118310.0,0.32284429]
[1753539577652,5.69541825,118320.0,118310.0,0.31439207]
[1753539578196,5.68696667,118320.0,118310.0,0.32284429]
[1753539578420,5.69541818,118320.0,118310.0,0.32284429]
[1753539578789,5.69541818,118320.0,118310.0,0.31439207]
[1753539579215,5.70386983,118320.0,118310.0,0.31439207]
[1753539579417,5.70386983,118320.0,118310.0,0.30593978]
[1753539579830,5.70386983,118320.0,118310.0,0.31439207]
[1753539580037,5.69541818,118320.0,118310.0,0.31439207]
[1753539580458,5.69541818,118320.0,118310.0,0.33129644]
[1753539581061,5.69541818,118320.0,118310.0,0.32284429]
[1753539581323,5.66161272,118320.0,118310.0,0.33974824]
[1753539581576,5.30073439,118320.0,118310.0,0.36244429]
[1753539581801,5.29228288,118320.0,118310.0,0.36244429]
[1753539581993,5.29228288,118320.0,118310.0,0.37089644]
[1753539582234,5.29228288,118320.0,118310.0,0.37934852]
[1753539582724,5.29228288,118320.0,118310.0,0.37934816]
[1753539583154,5.28383159,118320.0,118310.0,0.37934816]
[1753539583369,5.28383159,118320.0,118310.0,0.37089587]
[1753539583866,5.28383159,118320.0,118310.0,0.37934781]
[1753539584138,4.91533816,118320.0,118310.0,0.37934781]
[1753539584359,5.29228281,118320.0,118310.0,0.37089587]
[1753539585010,5.29228274,118320.0,118310.0,0.37089587]
[1753539585242,5.28383152,118320.0,118310.0,0.37089587]
[1753539585450,5.29228281,118320.0,118310.0,0.37089587]
[1753539586458,5.28383152,118320.0,118310.0,0.37934781]
[1753539586658,5.28383152,118320.0,118310.0,0.37089587]
[1753539586880,5.29228281,118320.0,118310.0,0.37089587]
[1753539587717,5.28383152,118320.0,118310.0,0.37934781]
[1753539589673,5.28383152,118320.0,118310.0,0.39434781]
[1753539591829,0.38837552,118320.0,118310.0,0.39434781]
[1753539592041,5.29228274,118320.0,118310.0,0.38589587]
[1753539592243,5.29228274,118320.0,118310.0,0.39434781]
[1753539592697,5.28383152,118320.0,118310.0,0.39434781]
[1753539594568,5.29228274,118320.0,118310.0,0.39434781]
[1753539595811,5.29228274,118320.0,118310.0,0.38589587]
[1753539596012,5.30073411,118320.0,118310.0,0.37744386]
[1753539596210,5.29228274,118320.0,118310.0,0.38589587]
[1753539596639,5.30073403,118320.0,118310.0,0.38589587]
[1753539596797,5.29228274,118320.0,118310.0,0.39434781]
[1753539596993,5.28383152,118320.0,118310.0,0.39434781]
[1753539597653,5.29228274,118320.0,118310.0,0.39434781]
[1753539598620,5.29228274,118320.0,118310.0,0.38589587]
[1753539599277,5.30073411,118320.0,118310.0,0.38589587]
[1753539599490,5.30073411,118320.0,118310.0,0.38581587]
[1753539600233,5.29228274,118320.0,118310.0,0.39426781]
[1753539600635,5.29228274,118320.0,118310.0,0.38581587]
[1753539601092,5.30073411,118320.0,118310.0,0.38581587]
[1753539601300,5.29228274,118320.0,118310.0,0.38581587]
[1753539601663,5.29228274,118320.0,118310.0,0.37736386]
[1753539601907,5.30073411,118320.0,118310.0,0.37736386]
[1753539602059,5.30073411,118320.0,118310.0,0.36236386]
[1753539602489,5.33269619,118320.0,118310.0,0.33025978]
[1753539602722,5.32725454,118320.0,118310.0,0.31431207]
[1753539602927,5.33570612,118320.0,118310.0,0.32276429]
[1753539603169,5.33570612,118320.0,118310.0,0.31431207]
[1753539603386,5.32725454,118320.0,118310.0,0.32276429]
[1753539603610,5.32725454,118320.0,118310.0,0.33121637]
[1753539604382,5.32725454,118320.0,118310.0,0.33121644]
[1753539604592,5.3188031,118320.0,118310.0,0.33966852]
[1753539604864,5.3188031,118320.0,118310.0,0.35437644]
[1753539605083,5.3188031,118320.0,118310.0,0.36282852]
[1753539606041,5.3188031,118320.0,118310.0,0.23446816]
[1753539606256,5.3188031,118320.0,118310.0,0.35437615]
[1753539606461,5.3157931,118320.0,118310.0,0.36282816]
[1753539606964,5.3157931,118320.0,118310.0,0.37942816]
[1753539607151,5.2922831,118320.0,118310.0,0.37942816]
[1753539607531,5.2922831,118320.0,118310.0,0.39552816]
[1753539607739,5.2922831,118320.0,118310.0,0.36282816]
[1753539607942,5.3157931,118320.0,118310.0,0.35437615]
[1753539608345,0.4203371,118320.0,118310.0,0.35437615]
[1753539608545,5.3157931,118320.0,118310.0,0.37097615]
[1753539608896,5.2922831,118320.0,118310.0,0.37097615]
[1753539609318,5.2922831,118320.0,118310.0,0.38707615]
[1753539612174,5.2922831,118320.0,118310.0,0.39552816]
[1753539612553,5.2922831,118320.0,118310.0,0.38707615]
[1753539612979,5.2922831,118320.0,118310.0,0.39552816]
[1753539613188,5.2922831,118320.0,118310.0,0.38707615]
[1753539617715,5.2922831,118320.0,118310.0,0.39552816]
[1753539617929,5.29228302,118320.0,118310.0,0.39552816]
[1753539618087,5.29228302,118320.0,118310.0,0.38707615]
[1753539618318,5.29228302,118320.0,118310.0,0.39552816]
[1753539618730,5.29228302,118320.0,118310.0,0.38707615]
[1753539619526,5.29228302,118320.0,118310.0,0.39552816]
[1753539619725,5.29228302,118320.0,118310.0,0.38707615]
[1753539619933,5.30073439,118320.0,118310.0,0.38707615]
[1753539622296,5.30073439,118320.0,118310.0,0.39552816]
[1753539622967,5.30073439,118320.0,118310.0,0.38707615]
[1753539624091,5.30073439,118320.0,118310.0,0.37862407]
[1753539624326,5.3091859,118320.0,118310.0,0.37862407]
[1753539624574,5.30073439,118320.0,118310.0,0.37862407]
[1753539625484,5.30918583,118320.0,118310.0,0.37862407]
[1753539625723,5.30073497,118320.0,118310.0,0.33716741]
[1753539626019,5.33512655,118320.0,118310.0,0.3058597]
[1753539626253,5.33512655,118320.0,118310.0,0.31431192]
[1753539626469,5.32667497,118320.0,118310.0,0.31431192]
[1753539626692,5.32667497,118320.0,118310.0,0.32276407]
[1753539627176,0.43121897,118320.0,118310.0,0.34731407]
[1753539627422,5.32667497,118320.0,118310.0,0.33886192]
[1753539627869,5.32667497,118320.0,118310.0,0.3304097]
[1753539628120,5.32361497,118320.0,118310.0,0.33886192]
[1753539628828,5.32361497,118320.0,118310.0,0.34731407]
[1753539629026,5.32361497,118320.0,118310.0,0.33886192]
[1753539629483,5.32361497,118320.0,118310.0,0.34731407]
[1753539629723,5.31516346,118320.0,118310.0,0.34731407]
[1753539629927,5.29228346,118320.0,118310.0,0.36321407]
[1753539630777,5.29228346,118320.0,118310.0,0.35476192]
[1753539631309,5.29228346,118320.0,118310.0,0.36321407]
[1753539631761,5.30073504,118320.0,118310.0,0.35476192]
[1753539632827,5.29228346,118320.0,118310.0,0.35476192]
[1753539633012,0.40527904,118320.0,118310.0,0.35476192]
[1753539633212,5.30073504,118320.0,118310.0,0.35476192]
[1753539633726,5.29228346,118320.0,118310.0,0.36321407]
[1753539634127,5.29228346,118320.0,118310.0,0.35476192]
[1753539634253,5.30073504,118320.0,118310.0,0.35476192]
[1753539634488,5.30073504,118320.0,118310.0,0.36321407]
[1753539634700,5.30073504,118320.0,118310.0,0.35476192]
[1753539635314,5.30073497,118320.0,118310.0,0.36321407]
[1753539635917,5.30073497,118320.0,118310.0,0.35476192]
[1753539638414,5.30073497,118320.0,118310.0,0.3463097]
[1753539638639,5.30073497,118320.0,118310.0,0.35476192]
[1753539639189,5.30073497,118320.0,118310.0,0.36321407]
[1753539639424,5.30073497,118320.0,118310.0,0.35476192]
[1753539639609,5.30073497,118320.0,118310.0,0.36321407]
[1753539639816,5.29228346,118320.0,118310.0,0.36321407]
[1753539640420,5.30073504,118320.0,118310.0,0.36321407]
[1753539640631,5.30073504,118320.0,118310.0,0.35476192]
[1753539641122,5.30073497,118320.0,118310.0,0.36321407]
[1753539641740,5.30073497,118320.0,118310.0,0.35476192]
[1753539642186,5.30073497,118320.0,118310.0,0.36321407]
[1753539642401,5.30073497,118320.0,118310.0,0.35476192]
[1753539642625,5.30073497,118320.0,118310.0,0.36321407]
[1753539642822,5.30073497,118320.0,118310.0,0.35476192]
[1753539642972,5.30073497,118320.0,118310.0,0.36321407]
[1753539643192,5.30918655,118320.0,118310.0,0.36321407]
[1753539643596,5.30918655,118320.0,118310.0,0.35476192]
[1753539644002,5.30918655,118320.0,118310.0,0.36321407]
[1753539644202,4.93224161,118320.0,118310.0,0.36321407]
[1753539644421,5.30073497,118320.0,118310.0,0.36321407]
[1753539644629,5.29228346,118320.0,118310.0,0.37166615]
[1753539644827,5.28383173,118320.0,118310.0,0.39631781]
[1753539645102,5.28383173,118320.0,118310.0,0.39844781]
[1753539645306,5.28383173,118320.0,118310.0,0.38999587]
[1753539645481,5.29228317,118320.0,118310.0,0.38999587]
[1753539645726,5.28383173,118320.0,118310.0,0.38999587]
[1753539646108,5.29228317,118320.0,118310.0,0.38154386]
[1753539646368,4.91533837,118320.0,118310.0,0.3899958]
[1753539646591,5.28383173,118320.0,118310.0,0.38999587]
[1753539646812,5.29228317,118320.0,118310.0,0.38154386]
[1753539648040,5.29228317,118320.0,118310.0,0.37309178]
[1753539648256,5.2922831,118320.0,118310.0,0.37309178]
[1753539649324,5.28383173,118320.0,118310.0,0.37309178]
[1753539649522,5.28383173,118320.0,118310.0,0.38154379]
[1753539649933,5.28383173,118320.0,118310.0,0.37309178]
[1753539650350,5.29228317,118320.0,118310.0,0.37309178]
[1753539650748,5.2922831,118320.0,118310.0,0.37309178]
[1753539651371,5.2922831,118320.0,118310.0,0.38154393]
[1753539651997,5.28383173,118320.0,118310.0,0.38999594]
[1753539652661,4.91533837,118320.0,118310.0,0.38154393]
[1753539652869,5.28383173,118320.0,118310.0,0.38154379]
[1753539653096,5.2922831,118320.0,118310.0,0.38447393]
[1753539653309,5.2922831,118320.0,118310.0,0.39292594]
[1753539653796,0.38837573,118320.0,118310.0,0.39292594]
[1753539654010,5.28383173,118320.0,118310.0,0.39292594]
[1753539654215,5.28383173,118320.0,118310.0,0.40137788]
[1753539654446,5.28383166,118320.0,118310.0,0.40137781]
[1753539654660,5.28383166,118320.0,118310.0,0.40137788]
[1753539654874,5.29228303,118320.0,118310.0,0.39292594]
[1753539655326,5.28383166,118320.0,118310.0,0.39292594]
[1753539655538,4.92378967,118320.0,118310.0,0.39292594]
[1753539655761,5.28383166,118320.0,118310.0,0.39292594]
[1753539655995,5.28383166,118320.0,118310.0,0.40137788]
[1753539656284,5.28383166,118320.0,118310.0,0.39292594]
[1753539656494,5.28383166,118320.0,118310.0,0.40137788]
[1753539656716,5.28383166,118320.0,118310.0,0.39292559]
[1753539657112,5.28383166,118320.0,118310.0,0.40137746]
[1753539657550,5.27538044,118320.0,118310.0,0.40137746]
[1753539657774,5.28383166,118320.0,118310.0,0.39292559]
[1753539658023,5.28383166,118320.0,118310.0,0.38999559]
[1753539658253,5.28383166,118320.0,118310.0,0.38154365]
[1753539658468,5.29228295,118320.0,118310.0,0.38154365]
[1753539658684,5.28383166,118320.0,118310.0,0.39844746]
[1753539659128,5.28383166,118320.0,118310.0,0.38999559]
[1753539659351,5.28383166,118320.0,118310.0,0.38154365]
[1753539659626,5.28383166,118320.0,118310.0,0.38999559]
[1753539660075,5.28383166,118320.0,118310.0,0.39844746]
[1753539660304,5.28383166,118320.0,118310.0,0.38999559]
[1753539660503,5.28383159,118320.0,118310.0,0.38999559]
[1753539661136,5.28383159,118320.0,118310.0,0.39844746]
[1753539661342,5.29228288,118320.0,118310.0,0.38999559]
[1753539662203,5.29228288,118320.0,118310.0,0.38154365]
[1753539663199,5.29228288,118320.0,118310.0,0.37309164]
[1753539663447,5.30073432,118320.0,118310.0,0.37309164]
[1753539663613,5.29228288,118320.0,118310.0,0.37309164]
[1753539663951,5.29228288,118320.0,118310.0,0.38154365]
[1753539664169,5.29228288,118320.0,118310.0,0.37941365]
[1753539664769,5.30073432,118320.0,118310.0,0.37941365]
[1753539665431,5.30073432,118320.0,118310.0,0.37096164]
[1753539665636,5.30073432,118320.0,118310.0,0.37941365]
[1753539666220,5.30073432,118320.0,118310.0,0.37096164]
[1753539666983,5.30073432,118320.0,118310.0,0.37941365]
[1753539667408,5.28383159,118320.0,118310.0,0.37096164]
[1753539667606,5.30073425,118320.0,118310.0,0.37941358]
[1753539668081,5.30073418,118320.0,118310.0,0.37941358]
[1753539668316,5.29228281,118320.0,118310.0,0.37941358]
[1753539668524,5.30073418,118320.0,118310.0,0.37941358]
[1753539668901,5.29228281,118320.0,118310.0,0.37941358]
[1753539669342,5.29228281,118320.0,118310.0,0.38786559]
[1753539669551,5.29228281,118320.0,118310.0,0.39631746]
[1753539669763,5.29228281,118320.0,118310.0,0.38786559]
[1753539669970,5.28383159,118320.0,118310.0,0.38786559]
[1753539670179,4.91533823,118320.0,118310.0,0.39631746]
[1753539670387,5.28383159,118320.0,118310.0,0.20204956]
[1753539670593,5.29228288,118320.0,118310.0,0.33870193]
[1753539670799,5.30073425,118320.0,118310.0,0.34715401]
[1753539670991,5.29228288,118320.0,118310.0,0.35560595]
[1753539671248,5.28383159,118320.0,118310.0,0.35560595]
[1753539671452,4.91533823,118320.0,118310.0,0.38065782]
[1753539671629,5.28383159,118320.0,118310.0,0.39665782]
[1753539672785,5.28383159,118320.0,118310.0,0.37975401]
[1753539672786,5.29228288,118320.0,118310.0,0.37975401]
[1753539673013,5.29228288,118320.0,118310.0,0.38820602]
[1753539673646,0.38837559,118320.0,118310.0,0.39665796]
[1753539673866,5.29228288,118320.0,118310.0,0.39665796]
[1753539674036,4.92378952,118320.0,118310.0,0.39665796]
[1753539674260,5.29228281,118320.0,118310.0,0.39665796]
[1753539674493,5.29228281,118320.0,118310.0,0.39665746]
[1753539674689,5.29228281,118320.0,118310.0,0.38820559]
[1753539676114,5.29228281,118320.0,118310.0,0.39665746]
[1753539676333,5.29228281,118320.0,118310.0,0.37975365]
[1753539677004,5.30073418,118320.0,118310.0,0.37130164]
[1753539677447,5.30073418,118320.0,118310.0,0.37975365]
[1753539677669,5.30073418,118320.0,118310.0,0.37130164]
[1753539678136,5.30073418,118320.0,118310.0,0.37975365]
[1753539678588,5.29228281,118320.0,118310.0,0.38820559]
[1753539679493,5.3007341,118320.0,118310.0,0.38820559]
[1753539679744,5.3007341,118320.0,118310.0,0.37975365]
[1753539681842,5.3007341,118320.0,118310.0,0.38820559]
[1753539682042,5.3007341,118320.0,118310.0,0.37975365]
[1753539682688,5.3007341,118320.0,118310.0,0.38820559]
[1753539682895,5.3091859,118320.0,118310.0,0.23464978]
[1753539683141,5.30073425,118320.0,118310.0,0.37975415]
[1753539683368,5.29228281,118320.0,118310.0,0.37975415]
[1753539683566,5.30073418,118320.0,118310.0,0.37975415]
[1753539683773,5.30073418,118320.0,118310.0,0.38820616]
[1753539684005,5.29228281,118320.0,118310.0,0.3966581]
[1753539684235,5.30073418,118320.0,118310.0,0.38820616]
[1753539684440,5.30073418,118320.0,118310.0,0.37975415]
[1753539684607,5.30073418,118320.0,118310.0,0.38820616]
[1753539684826,5.30918576,118320.0,118310.0,0.37975415]
[1753539685025,5.30918576,118320.0,118310.0,0.37975422]
[1753539685489,5.33363576,118320.0,118310.0,0.37975422]
[1753539686904,5.33363633,118320.0,118310.0,0.37975422]
[1753539688171,5.32518468,118320.0,118310.0,0.37975422]
[1753539688596,5.33363633,118320.0,118310.0,0.37975422]
[1753539688810,5.32518468,118320.0,118310.0,0.37975422]
[1753539689334,5.32518468,118320.0,118310.0,0.25155422]
[1753539689565,5.32518468,118320.0,118310.0,0.37971422]
[1753539689762,5.32518468,118320.0,118310.0,0.25155429]
[1753539690185,5.32518468,118320.0,118310.0,0.37971429]
[1753539691190,5.32518468,118320.0,118310.0,0.36371429]
[1753539691933,5.31673353,118320.0,118310.0,0.33071207]
[1753539692175,5.48880666,118320.0,118310.0,0.31380741]
[1753539692643,5.48880666,118320.0,118310.0,0.3222597]
[1753539693086,5.48880666,118320.0,118310.0,0.33071192]
[1753539693939,5.31977353,118320.0,118310.0,0.20255192]
[1753539694465,5.31977353,118320.0,118310.0,0.35464192]
[1753539694721,5.29228353,118320.0,118310.0,0.35464192]
[1753539694872,5.29228346,118320.0,118310.0,0.36309407]
[1753539695083,5.29228346,118320.0,118310.0,0.35464192]
[1753539695321,5.29228346,118320.0,118310.0,0.36309407]
[1753539695901,5.29228346,118320.0,118310.0,0.23493407]
[1753539696217,5.29228346,118320.0,118310.0,0.35464192]
[1753539697243,5.30073504,118320.0,118310.0,0.35464192]
[1753539697874,5.30073504,118320.0,118310.0,0.3461897]
[1753539698346,5.32518504,118320.0,118310.0,0.3056597]
[1753539698932,5.6967184,118320.0,118310.0,0.29720741]
[1753539699100,5.6967184,118320.0,118310.0,0.31411207]
[1753539699718,5.32822504,118320.0,118310.0,0.31411207]
[1753539700119,5.29228346,118320.0,118310.0,0.33804207]
[1753539700526,5.32518511,118320.0,118310.0,0.33804207]
[1753539701059,5.32518511,118320.0,118310.0,0.31411207]
[1753539701214,5.31673346,118320.0,118310.0,0.32256429]
[1753539702165,5.31673346,118320.0,118310.0,0.19440429]
[1753539702333,5.32518511,118320.0,118310.0,0.31411207]
[1753539702531,5.31673346,118320.0,118310.0,0.32256429]
[1753539702733,5.32518504,118320.0,118310.0,0.32256429]
[1753539703160,5.32518504,118320.0,118310.0,0.31411207]
[1753539703392,5.32518504,118320.0,118310.0,0.32256429]
[1753539703801,5.32518504,118320.0,118310.0,0.34649429]
[1753539704923,5.31673346,118320.0,118310.0,0.37544892]
[1753539705134,5.31673346,118320.0,118310.0,0.34649429]
[1753539705342,5.29228346,118320.0,118310.0,0.34649429]
[1753539705996,5.29228346,118320.0,118310.0,0.36209429]
[1753539706199,5.30073511,118320.0,118310.0,0.36209429]
[1753539706379,5.30073511,118320.0,118310.0,0.35364207]
[1753539706785,5.29228346,118320.0,118310.0,0.36209429]
[1753539707332,5.30073511,118320.0,118310.0,0.36209429]
[1753539707971,5.30073504,118320.0,118310.0,0.36209429]
[1753539708575,5.29228346,118320.0,118310.0,0.36209429]
[1753539709090,0.39682746,118320.0,118310.0,0.36209429]
[1753539709291,5.29228346,118320.0,118310.0,0.36209429]
[1753539710576,0.39682746,118320.0,118310.0,0.37054644]
[1753539710782,5.29228346,118320.0,118310.0,0.37054644]
[1753539711077,5.29228346,118320.0,118310.0,0.36205429]
[1753539711503,5.29228346,118320.0,118310.0,0.23393429]
[1753539711697,5.29228346,118320.0,118310.0,0.36205429]
[1753539712137,5.29228346,118320.0,118310.0,0.24238644]
[1753539712334,5.29228346,118320.0,118310.0,0.37050644]
[1753539712542,5.28383195,118320.0,118310.0,0.40993429]
[1753539712751,5.28383195,118320.0,118310.0,0.41206429]
[1753539712957,5.28383195,118320.0,118310.0,0.40683221]
[1753539713269,5.29228346,118320.0,118310.0,0.39245644]
[1753539713476,4.9237901,118320.0,118310.0,0.39245644]
[1753539713680,5.29228346,118320.0,118310.0,0.39245644]
[1753539714008,5.28383195,118320.0,118310.0,0.39245644]
[1753539714223,5.28383195,118320.0,118310.0,0.40090852]
[1753539714626,5.28383195,118320.0,118310.0,0.27278852]
[1753539714830,5.28383195,118320.0,118310.0,0.40090852]
[1753539715466,5.29228289,118320.0,118310.0,0.40090816]
[1753539715662,5.29228289,118320.0,118310.0,0.39245615]
[1753539716568,5.29228289,118320.0,118310.0,0.40090816]
[1753539716771,5.29228289,118320.0,118310.0,0.39245615]
[1753539717216,5.29228289,118320.0,118310.0,0.40090816]
[1753539717446,5.29228289,118320.0,118310.0,0.39245615]
[1753539718135,5.29228289,118320.0,118310.0,0.38923615]
[1753539718913,5.29228289,118320.0,118310.0,0.38078407]
[1753539720987,5.29228281,118320.0,118310.0,0.39768781]
[1753539721197,5.29228281,118320.0,118310.0,0.38923587]
[1753539721430,4.92378945,118320.0,118310.0,0.38078386]
[1753539721634,5.29228281,118320.0,118310.0,0.38923587]
[1753539722073,5.29228281,118320.0,118310.0,0.38078386]
[1753539722499,5.30073425,118320.0,118310.0,0.38078386]
[1753539722702,5.29228281,118320.0,118310.0,0.38078386]
[1753539723101,5.30073418,118320.0,118310.0,0.38078386]
[1753539725137,5.30073418,118320.0,118310.0,0.38923587]
[1753539725592,5.30073418,118320.0,118310.0,0.38078386]
[1753539725805,5.30073418,118320.0,118310.0,0.38923587]
[1753539726038,5.30073418,118320.0,118310.0,0.38078386]
[1753539726415,5.30073418,118320.0,118310.0,0.38923587]
[1753539726616,5.30073418,118320.0,118310.0,0.38078386]
[1753539726838,5.30073418,118320.0,118310.0,0.38923587]
[1753539727184,5.30918569,118320.0,118310.0,0.38078386]
[1753539727388,5.30918562,118320.0,118310.0,0.38078386]
[1753539727591,5.30918562,118320.0,118310.0,0.37233178]
[1753539727795,5.30918562,118320.0,118310.0,0.36387963]
[1753539727796,5.30918619,118320.0,118310.0,0.36387963]
[1753539728010,5.30918619,118320.0,118310.0,0.37233178]
[1753539728207,5.30918626,118320.0,118310.0,0.36387963]
[1753539728453,5.30918619,118320.0,118310.0,0.37020178]
[1753539728662,5.30918619,118320.0,118310.0,0.36174963]
[1753539728889,5.29122936,118320.0,118310.0,0.37865358]
[1753539729100,5.27538051,118320.0,118310.0,0.35472358]
[1753539729311,5.27538051,118320.0,118310.0,0.37863365]
[1753539729526,5.2838318,118320.0,118310.0,0.37018171]
[1753539729753,5.2838318,118320.0,118310.0,0.37863372]
[1753539730201,5.2838318,118320.0,118310.0,0.24206178]
[1753539730424,5.30073475,118320.0,118310.0,0.36168963]
[1753539730678,5.30073468,118320.0,118310.0,0.36168963]
[1753539731120,5.32503468,118320.0,118310.0,0.36168963]
[1753539731552,5.32503461,118320.0,118310.0,0.36168963]
[1753539731827,5.33348619,118320.0,118310.0,0.36168963]
[1753539732041,5.32503461,118320.0,118310.0,0.37014178]
[1753539733151,5.33348626,118320.0,118310.0,0.36168963]
[1753539733357,5.33348612,118320.0,118310.0,0.37014178]
[1753539733777,5.33348612,118320.0,118310.0,0.36168963]
[1753539733952,5.33348612,118320.0,118310.0,0.37014178]
[1753539734136,5.33348612,118320.0,118310.0,0.36168963]
[1753539734712,5.30918612,118320.0,118310.0,0.36168963]
[1753539735295,5.30918612,118320.0,118310.0,0.37014178]
[1753539735722,5.30918655,118320.0,118310.0,0.36168963]
[1753539736533,5.33348655,118320.0,118310.0,0.36168963]
[1753539736797,0.41373055,118320.0,118310.0,0.36168963]
[1753539736992,5.30918655,118320.0,118310.0,0.36168963]
[1753539737750,5.33348655,118320.0,118310.0,0.36168963]
[1753539739602,5.33348655,118320.0,118310.0,0.37014192]
[1753539739758,5.33348655,118320.0,118310.0,0.35354192]
[1753539740206,5.30918655,118320.0,118310.0,0.35354192]
[1753539741423,5.30918655,118320.0,118310.0,0.3450897]
[1753539741581,5.30918655,118320.0,118310.0,0.35354192]
[1753539743032,5.30918655,118320.0,118310.0,0.36199407]
[1753539743229,5.29228346,118320.0,118310.0,0.383474]
[1753539743501,5.29030346,118320.0,118310.0,0.383474]
[1753539743937,4.9218101,118320.0,118310.0,0.383474]
[1753539744142,5.29030346,118320.0,118310.0,0.383474]
[1753539744354,5.29234346,118320.0,118310.0,0.39192615]
[1753539744583,5.29234346,118320.0,118310.0,0.38347407]
[1753539745035,5.28389202,118320.0,118310.0,0.39192608]
[1753539745234,5.29234353,118320.0,118310.0,0.38347407]
[1753539745824,5.29234353,118320.0,118310.0,0.37502192]
[1753539746060,5.30079518,118320.0,118310.0,0.37502192]
[1753539746590,5.29234353,118320.0,118310.0,0.37502192]
[1753539748017,5.29234353,118320.0,118310.0,0.38347407]
[1753539748233,5.29234353,118320.0,118310.0,0.37502192]
[1753539748453,5.29234353,118320.0,118310.0,0.36158978]
[1753539748670,5.30079518,118320.0,118310.0,0.37004207]
[1753539748900,5.46982831,118320.0,118310.0,0.37004207]
[1753539749338,5.46982831,118320.0,118310.0,0.37849429]
[1753539749563,5.46982831,118320.0,118310.0,0.37004207]
[1753539749779,5.46137702,118320.0,118310.0,0.36158978]
[1753539749992,5.46137702,118320.0,118310.0,0.37004207]
[1753539751325,5.46137702,118320.0,118310.0,0.37849429]
[1753539752522,5.46137702,118320.0,118310.0,0.37004207]
[1753539752738,5.46137702,118320.0,118310.0,0.37849429]
[1753539754438,0.55746965,118320.0,118310.0,0.37004207]
[1753539754649,5.45292565,118320.0,118310.0,0.37004207]
[1753539759083,5.45292565,118320.0,118310.0,0.37849429]
[1753539760128,5.45292565,118320.0,118310.0,0.37004207]
[1753539760351,5.45292565,118320.0,118310.0,0.37849429]
[1753539761213,5.27544044,118320.0,118310.0,0.39539824]
[1753539761410,4.896456,118320.0,118310.0,0.45733278]
[1753539761795,0.001,118320.0,118310.0,0.82582614]
[1753539762021,0.001,118320.0,118310.0,0.91030344]
[1753539762703,0.5,118330.0,118320.0,0.22448723]
[1753539762980,5.39545601,118340.0,118330.0,0.2244708]
[1753539763212,4.89545601,118340.0,118330.0,0.72302416]
[1753539763423,4.89545601,118340.0,118330.0,0.75079416]
[1753539763634,4.89545601,118340.0,118330.0,0.3823008]
[1753539764506,4.89545601,118340.0,118330.0,0.77538765]
[1753539764932,4.89545601,118340.0,118330.0,0.40689429]
[1753539765364,0.00200001,118340.0,118330.0,0.77538765]
[1753539766025,0.00300001,118340.0,118330.0,0.77538765]
[1753539766410,0.00200001,118340.0,118330.0,0.40689429]
[1753539766856,0.00100001,118340.0,118330.0,0.40689429]
[1753539769531,0.40100001,118340.0,118330.0,0.40689429]
[1753539774949,0.76949337,118340.0,118330.0,0.40689429]
[1753539776041,0.76949337,118340.0,118330.0,0.3823008]
[1753539777501,0.40100001,118340.0,118330.0,0.3823008]
[1753539777711,0.76949337,118340.0,118330.0,0.3823008]
[1753539781655,0.40100001,118340.0,118330.0,0.3823008]
[1753539781855,0.76949337,118340.0,118330.0,0.3823008]
[1753539784574,0.77145337,118340.0,118330.0,0.3823008]
[1753539784744,0.77145337,118340.0,118330.0,0.3791608]
[1753539787198,0.81638289,118340.0,118330.0,0.22447094]
[1753539787421,5.5205941,118340.0,118330.0,0.29697884]
[1753539787643,5.96511489,118340.0,118330.0,0.12796]
[1753539787871,5.36055846,118330.0,118320.0,0.18593629]
[1753539788100,5.75904182,118330.0,118320.0,0.31389629]
[1753539788305,5.75904161,118330.0,118320.0,0.32234773]
[1753539788497,5.35904161,118330.0,118320.0,0.3307991]
[1753539788699,5.35059089,118330.0,118320.0,0.32234773]
[1753539788895,5.34214031,118330.0,118320.0,0.3307991]
[1753539789101,5.29393936,118330.0,118320.0,0.33925025]
[1753539789505,5.30238973,118330.0,118320.0,0.21129025]
[1753539789668,5.30238973,118330.0,118320.0,0.33925025]
[1753539790310,5.30438973,118330.0,118320.0,0.33925025]
[1753539790716,5.31284017,118330.0,118320.0,0.33925025]
[1753539790957,5.26349814,118330.0,118320.0,0.33925025]
[1753539791294,5.26449814,118330.0,118320.0,0.33925025]
[1753539791678,5.25604777,118330.0,118320.0,0.33925025]
[1753539792675,5.26449806,118330.0,118320.0,0.21129025]
[1753539792891,5.26449806,118330.0,118320.0,0.33925025]
[1753539794445,5.2729485,118330.0,118320.0,0.33925025]
[1753539794994,5.26449806,118330.0,118320.0,0.33925025]
[1753539795212,5.28139901,118330.0,118320.0,0.32234773]
[1753539795426,5.28984973,118330.0,118320.0,0.32234773]
[1753539796105,5.77958117,118330.0,118310.0,0.17749978]
[1753539796338,4.91235837,118320.0,118310.0,0.19440415]
[1753539796521,0.36408292,118320.0,118310.0,0.33081616]
[1753539796727,0.36604292,118320.0,118310.0,0.3392681]
[1753539796881,0.35759177,118320.0,118310.0,0.3392676]
[1753539797100,0.35759177,118320.0,118310.0,0.39604208]
[1753539797820,0.36604278,118320.0,118310.0,0.39604208]
[1753539798178,0.36604278,118320.0,118310.0,0.42077208]
[1753539798811,0.36285278,118320.0,118310.0,0.42077208]
[1753539799465,0.32956177,118320.0,118310.0,0.42077208]
[1753539800170,0.33801278,118320.0,118310.0,0.42077208]
[1753539800362,0.32956177,118320.0,118310.0,0.42077208]
[1753539800487,0.33801278,118320.0,118310.0,0.42077208]
[1753539803692,0.32956177,118320.0,118310.0,0.42077208]
[1753539804182,0.32956177,118320.0,118310.0,0.43597208]
[1753539804183,0.33801285,118320.0,118310.0,0.43597208]
[1753539804405,0.32956177,118320.0,118310.0,0.43597208]
[1753539804655,0.33801278,118320.0,118310.0,0.43597208]
[1753539806357,0.33801278,118320.0,118310.0,0.43806208]
[1753539809299,0.32956177,118320.0,118310.0,0.43806208]
[1753539809846,0.33801278,118320.0,118310.0,0.43806208]
[1753539810310,0.33801285,118320.0,118310.0,0.43806208]
[1753539810979,0.37897916,118320.0,118310.0,0.43806208]
[1753539811238,0.37897916,118320.0,118310.0,0.3812876]
[1753539811889,0.37052808,118320.0,118310.0,0.3812876]
[1753539812157,0.39588146,118320.0,118310.0,0.34918379]
[1753539812431,0.39588139,118320.0,118310.0,0.3639976]
[1753539813149,0.38743017,118320.0,118310.0,0.3639976]
[1753539813921,0.38743017,118320.0,118310.0,0.42087208]
[1753539814674,0.38743017,118320.0,118310.0,0.40396827]
[1753539814928,0.38743017,118320.0,118310.0,0.41242014]
[1753539815182,0.39588139,118320.0,118310.0,0.41242014]